Cogmind - Beta 14 X2 @@@ ROGUE MODE // 2024.07.29 @ 03:22:26 Player: Some Pennies Result: Destroyed by S-10 Pest with Light Assault Rifle Performance ------------- Evolutions (0) 0 Regions Visited (2) 400 Robots Destroyed (28) 140 Value Destroyed (524) 524 Prototype IDs (7) 140 Alien Tech Used (0) 0 Bonus (0) 0 TOTAL SCORE: 1204 Bonus ------- None Cogmind --------- Core Integrity 0/250 Matter 300/300 Energy 217/265 System Corruption 0% Temperature Cool (0) Movement Treading (160) Location -10/Mines Parts ------- > --- POWER (1) -------- Reinforced Ion Engine > --- PROPULSION (2) --- Light Treads Light Treads > --- UTILITY (2) ------ Hardened Light Armor Plating > --- WEAPON (2) ------- (None) > --- INVENTORY (5) ---- ECM Suite Peak State ------------ > --- POWER ------------ Ion Engine > --- PROPULSION ------- Improved Treads Improved Treads > --- UTILITY ---------- Huge Storage Unit Visual Processing Unit > --- WEAPON ----------- Assault Rifle Light Assault Rifle > --- INVENTORY -------- Ion Engine Light Treads Light Treads Light Treads Light Treads Light Treads Light Treads Light Treads Wheel Wheel Heat Sink Heat Sink Small Storage Unit Signal Interpreter Seismic Detector ECM Suite Light Assault Rifle Light Assault Rifle Light Cannon Datajack Mining Laser [Rating: 12] Favorites ----------- Power Ion Engine Engine Ion Engine Propulsion Light Treads Treads Light Treads Wheel Wheel Utility Huge Storage Unit Device Seismic Detector Storage Huge Storage Unit Processor Visual Processing Unit Protection Hardened Light Armor Plating Weapon Light Assault Rifle Ballistic Gun Light Assault Rifle Ballistic Cannon Light Cannon Special Weapon Mining Laser Build | -11 -10 -10 ------- Run | Yrd Mat Min Slots Evolved . | . . . Power . | . . . Propulsion . | . . . Utility . | . . . Weapon . | . . . Parts Attached 30 | 7 19 4 Power 3 | 1 1 1 Engine 3 | 1 1 1 Core . | . . . Reactor . | . . . Propulsion 10 | 2 6 2 Treads 9 | 1 6 2 Leg . | . . . Wheel 1 | 1 . . Hover . | . . . Flight . | . . . Utility 8 | 2 5 1 Device 1 | 1 . . Storage 3 | 1 2 . Processor 2 | . 2 . Hackware . | . . . Protection 2 | . 1 1 Artifact . | . . . Weapon 9 | 2 7 . Energy Gun . | . . . Energy Cannon . | . . . Ballistic Gun 6 | 2 4 . Ballistic Cannon 2 | . 2 . Launcher . | . . . Special Weapon 1 | . 1 . Impact Weapon . | . . . Slashing Weapon . | . . . Piercing Weapon . | . . . Special Melee Weapon . | . . . Unidentified Prototypes . | . . . Parts Lost 1 | . 1 . Power . | . . . Propulsion . | . . . Utility . | . . . Weapon 1 | . 1 . Highest Loss Streak 1 | . 1 . To Critical Strikes . | . . . Average Slot Usage (%) 98 | . 99 69 Engine 13 | . 14 11 Treads 27 | . 27 23 Device 2 | . 3 . Storage 13 | . 14 7 Processor 4 | . 4 . Protection 6 | . 6 11 Ballistic Gun 20 | . 20 7 Ballistic Cannon 7 | . 7 7 Naked Turns 13 | . . 13 Heaviest Build 99 | 14 99 99 Greatest Support 46 | 10 46 40 Greatest Overweight (x) 2 | 1 2 2 Average Overweight (x) 1 | . 1 . Largest Inventory Capacity 25 | 8 25 25 Average Capacity 22 | 7 23 14 Most Carried 25 | 8 25 25 Average Carried 18 | 4 19 12 Final Capacity 25 | 8 25 5 Final Carried 25 | 8 25 1 Class Distribution -------------------- 100% | Mutant Dominant Class ---------------- Mutant | -10/Materials Mutant | -10/Mines Resources | -11 -10 -10 ----------- Run | Yrd Mat Min Matter Collected 903 | 286 544 73 Remotely . | . . . Salvage Created 810 | 97 711 2 Parts 58 | 6 49 3 Haulers Intercepted 2 | . 2 . Recyclers Shooed 1 | . 1 . Parts Field Recycled . | . . . Retrieved Matter . | . . . Parts Self-Destructed . | . . . Prevented . | . . . Kills | -11 -10 -10 ------- Run | Yrd Mat Min Combat Hostiles Destroyed 19 | . 18 1 Guns 14 | . 13 1 Cannons 5 | . 5 . Classes Destroyed 8 | 2 6 . Worker 2 | . 2 . Tunneler 1 | 1 . . Hauler 2 | . 2 . Recycler 2 | 1 1 . Operator 1 | . 1 . Watcher 1 | . 1 . Swarmer 8 | . 7 1 Grunt 11 | . 11 . Best Kill Streak 3 | 1 3 1 Combat Bots Only 3 | . 3 1 Max Kills in Single Turn 1 | 1 1 1 Gunslinging . | . . . Exploded . | . . . Melee . | . . . Uniques/NPCs Destroyed . | . . . Combat | -11 -10 -10 -------- Run | Yrd Mat Min Hostile Shots Fired 152 | . 100 52 Missed 47 | . 26 21 Damage Taken 1098 | . 724 374 Core 254 | . 111 143 Absorbed by Shields . | . . . Regen/Repaired (Parts) 90 | . 90 . Core Remaining (%) 100 | 100 . . Volleys Fired 96 | 4 84 8 Largest 2 | 2 2 2 Hottest 100 | 40 100 55 Shots Fired 191 | 8 167 16 Gun 157 | 8 141 8 Cannon 33 | . 25 8 Launcher . | . . . Special 1 | . 1 . Kinetic 190 | 8 166 16 Thermal 1 | . 1 . Explosive . | . . . Electromagnetic . | . . . Robot Hit Streak 12 | 3 12 7 Robot Miss Streak 8 | 2 8 2 Penetration Max . | . . . Secondary Targets 1 | . 1 . Max Gunslinging Chain 1 | . 1 . Shots Hit Robots 114 | 4 100 10 Core Hits 46 | 3 40 3 Critical Kills . | . . . Critical Parts Destroyed . | . . . Critical Strikes 1 | . 1 . Blast 1 | . 1 . Melee Attacks . | . . . Impact . | . . . Slashing . | . . . Piercing . | . . . Sneak Attacks . | . . . Combat Hostiles . | . . . Follow-up Attacks . | . . . Damage Inflicted 1335 | 45 1145 145 Guns 982 | 45 889 48 Cannons 344 | . 256 88 Explosions . | . . . Melee . | . . . Ramming 9 | . . 9 Kinetic 1326 | 45 1145 136 Thermal . | . . . Explosive . | . . . Electromagnetic . | . . . Impact . | . . . Slashing . | . . . Piercing . | . . . Highest Corruption . | . . . Average Corruption . | . . . Corruption Purged . | . . . Corruption Blocked . | . . . Overload Shots . | . . . Overflow Damage . | . . . Projectiles . | . . . Explosions . | . . . Melee . | . . . Knockbacks 3 | . 2 1 Impact . | . . . Kinetic 3 | . 2 1 Secondary . | . . . Self-Inflicted Damage . | . . . Shots . | . . . Rammed 8 | . . 8 Targets Rammed 8 | . . 8 Kicked . | . . . Crushed . | . . . Highest Temperature 159 | . 130 159 Average Temperature 47 | . 39 91 Received Heat Transfer 249 | . 249 . Siege Activations . | . . . Robots Corrupted . | . . . Combat Hostiles . | . . . Parts Fried . | . . . Impact Corruptions . | . . . Robots Melted . | . . . Combat Hostiles . | . . . Parts Melted . | . . . Heat Transferred . | . . . Parts Sabotaged . | . . . Parts Stolen . | . . . Parts Stripped . | . . . Power Chain Reactions . | . . . Alert | -11 -10 -10 ------- Run | Yrd Mat Min Peak Influence 171 | 10 171 107 Initial 47 | . 6 47 Average 65 | 4 66 87 Maximum Alert Level . | . . . Low Security (%) 100 | 100 100 100 Level 1 . | . . . Level 2 . | . . . Level 3 . | . . . Level 4 . | . . . Level 5 . | . . . High Security . | . . . Max Security . | . . . Squads Dispatched 4 | . 4 . Investigation 3 | . 3 . Extermination . | . . . Reinforcement 1 | . 1 . Assault . | . . . Garrison . | . . . Intercept . | . . . Searches Triggered . | . . . Construction Impeded . | . . . Haulers Reinforced . | . . . Active Scanning Responses . | . . . Cargo Convoy Interrupts . | . . . Stealth | -11 -10 -10 --------- Run | Yrd Mat Min Distress Signals 3 | . 3 . Communications Jammed . | . . . Distress Signals . | . . . Times Spotted 56 | . 36 20 Peak Tracking Total 12 | . 5 12 Tactical Retreats 3 | . 2 1 Traps | -11 -10 -10 ------- Run | Yrd Mat Min Traps Triggered . | . . . Indirectly . | . . . Trap Hack Attempts . | . . . Triggered . | . . . Disarmed . | . . . Reprogrammed . | . . . Reused . | . . . Traps Extracted . | . . . Installed . | . . . Triggered . | . . . Machines | -11 -10 -10 ---------- Run | Yrd Mat Min Machines Disabled . | . . . Max in Single Turn . | . . . Machines Repaired . | . . . Machines Dismantled . | . . . Machines Sabotaged . | . . . Overloaded Fab Kills . | . . . Hacking | -11 -10 -10 --------- Run | Yrd Mat Min Machines Accessed 10 | . 10 . Terminals 7 | . 7 . Fabricators . | . . . Repair Stations 1 | . 1 . Recycling Units 2 | . 2 . Scanalyzers . | . . . Garrison Access . | . . . Total Hacks 34 | . 34 . Successful 14 | . 14 . Failed 20 | . 20 . Catastrophic 2 | . 2 . Database Lockouts . | . . . Manual 9 | . 9 . Terminals 23 | . 23 . Fabricators . | . . . Repair Stations 2 | . 2 . Recycling Units 9 | . 9 . Scanalyzers . | . . . Garrison Access . | . . . Terminal Hacks 9 | . 9 . Robot Analysis 1 | . 1 . Prototype ID Bank 5 | . 5 . Locate Traps 1 | . 1 . Zone Layout 2 | . 2 . Fabricator Hacks . | . . . Repair Station Hacks 2 | . 2 . Scan Component 1 | . 1 . Repair 1 | . 1 . Recycling Unit Hacks . | . . . Scanalyzer . | . . . Garrison Access Hacks . | . . . Unauthorized Hacks 3 | . 3 . Terminals 1 | . 1 . Botnet 1 | . 1 . Fabricators . | . . . Repair Stations . | . . . Recycling Units 2 | . 2 . Tunnel 2 | . 2 . Scanalyzers . | . . . Garrison Access . | . . . Data Cores Recovered . | . . . Used . | . . . Hacking Detections 9 | . 9 . Full Trace Events 1 | . 1 . Feedback Events . | . . . Feedback Blocked . | . . . Robot Schematics Acquired . | . . . Robots Built . | . . . Authchips . | . . . Time . | . . . Total Robot Build Rating . | . . . Part Schematics Acquired . | . . . Parts Built . | . . . Authchips . | . . . Time . | . . . Total Part Build Rating . | . . . Parts Repaired 1 | . 1 . Time 26 | . 26 . Parts Recycled . | . . . Recycled Matter . | . . . Retrieved Matter . | . . . Retrieved Components . | . . . Parts Scanalyzed . | . . . Part Schematics Acquired . | . . . Parts Damaged . | . . . Bothacking | -11 -10 -10 ------------ Run | Yrd Mat Min Used RIF Installer . | . . . Robots Hacked . | . . . Non-combat . | . . . Combat . | . . . Robot Hacks Applied . | . . . Relay Couplers Released . | . . . Fabnet Peak Effective % . | . . . Robots Rewired . | . . . Allies Hacked . | . . . Hacks Repelled . | . . . Allies | -11 -10 -10 -------- Run | Yrd Mat Min Total Allies . | . . . Largest Group . | . . . Highest-Rated Group . | . . . Highest-Rated Ally . | . . . Total Orders . | . . . Ally Attacks . | . . . Total Damage . | . . . Kills . | . . . Allies Corrupted . | . . . Allies Melted . | . . . Intel | -11 -10 -10 ------- Run | Yrd Mat Min Robot Analysis Total 1 | . 1 . Derelict Logs Recovered . | . . . Drone Launches . | . . . Drone Recoveries . | . . . Exploration | -11 -10 -10 ------------- Run | Yrd Mat Min Turns Passed 2322 | 70 2195 57 Spaces Moved 738 | 45 665 28 Core 30 | 4 . 26 Treads 579 | . 577 2 Legs . | . . . Wheels 129 | 41 88 . Hover . | . . . Flight . | . . . Fastest Speed 50 | 50 95 50 Average Speed 257 | 89 276 63 Slowest Speed 320 | 95 320 320 Overloaded Moves . | . . . Propulsion Burnouts . | . . . Robots Hopped . | . . . Cave-ins Triggered . | . . . Exploration Rate (%) 37 | 3 98 11 Regions Visited 2 Branch Regions 1 Pre-discovered Areas 2 | . 2 . Known Exits Taken . | . . . Unknown Exits Taken 2 | 1 1 . Scrap Searched . | . . . Spaces Dug 1 | . 1 . Terrain Destroyed 1 | . 1 . Melee . | . . . Projectile 1 | . 1 . AOE . | . . . Terrain Rammed . | . . . Walls Destroyed . | . . . Machines Disabled . | . . . Actions | -11 -10 -10 --------- Run | Yrd Mat Min Total 979 | 64 867 48 Wait 60 | . 60 . Move 736 | 44 664 28 Hop . | . . . Pick Up 36 | 9 27 . Fast Attach 7 | 6 1 . Attach 6 | 1 1 4 Detach . | . . . Swap 17 | . 17 . Drop 13 | . 13 . Fire 96 | 4 84 8 Melee . | . . . Ram . | . . . Kick . | . . . Crush 8 | . . 8 Escape Stasis . | . . . Rewire . | . . . Trap . | . . . Miscellaneous . | . . . Route ------- -11/Scrapyard -10/Materials (discovered 4 exits: [*Mat x3] / [*Min]) -10/Mines History --------- Turn | Location | Event 27 | -11/Scrapyard | Discovered new exit (range 16) 71 | -11/Scrapyard | Entered Materials 308 | -10/Materials | Discovered new exit (range 6) 311 | -10/Materials | Build established: Mutant 551 | -10/Materials | Discovered new exit (range 16) 1013 | -10/Materials | Repaired Lgt. Treads 1155 | -10/Materials | Discovered new exit (range 18) 2069 | -10/Materials | Discovered new exit (range 15) 2266 | -10/Materials | Entered Mines 2267 | -10/Mines | Assembled infested the area 2269 | -10/Mines | Core integrity fell below 50% 2272 | -10/Mines | Assisted by a Guerilla fighting off Assembled 2292 | -10/Mines | Released all parts (7) 2293 | -10/Mines | Core integrity fell below 20% 2323 | -10/Mines | Destroyed by S-10 Pest with Light Assault Rifle Last Messages --------------- 02292_ Released Rnf. Ion Engine. 02292_ Rnf. Ion Engine crushed and broken. 02292_ Released Lgt. Treads. 02292_ Lgt. Treads crushed and broken. 02292_ Released Lgt. Treads. 02292_ Lgt. Treads crushed and broken. 02292_ Released Hrd. Light Armor Plating. 02292_ Hrd. Light Armor Plating crushed and broken. 02292_ Released Lgt. Cannon. 02292_ Lgt. Cannon crushed and broken. 02292_ Released Lgt. Assault Rifle. 02292_ Lgt. Assault Rifle crushed and broken. 02292_ Acquired 3 matter. 02294_ Acquired 2 matter. 02295_ Acquired 51 matter. 02309_ as-87801 destroyed. 02311_ Slammed into S-10 Pest. 02320_ Acquired 17 matter. 02320_ Slammed into S-10 Pest. Map ----- +----------------------------------------------------+ | ?????????????????????????????????????????????????? | | ?????????????????????????????????????????????????? | | ?????????????????????????????????????????????????? | | ?????????????????????????????????????????????????? | | ???????????#?????????????????????????????????????? | | ?????????# #????????????????????????????????????? | | ??????### ????????????????????????????????????? | | ?????##"#? ???????????? ??????????????????????? | | ????? ##?????????? ???????????????????????? | | ?????? ##???????? ???????????????????????? | | ??????#%#? ######?## ????????????????????????? | | ??????#=##? % ## ####?????????????????????? | | ??????#%]#? " #?????????????????????? | | ??#####["## # ??????????????????????? | | ??# *|=%*!## % ???????????????????????? | | ??#!== !%[!# ?????????????????????????? | | ??#==/=!=!## #?# ??????????????????????????? | | ??#!!=*=%[!# #?? ???????????????????????????? | | ??#########" ##### #######??????????????????????? | | ?????????# #??????????????????????? | | ???????????############## #??????????????????????? | | ????????????????????????#a#??????????????????????? | | ????????????????????????#s#??????????????????????? | | ????????????????????????# #??????????????????????? | | ????????????????????????#%#??????????????????????? | | ????????????????????????#@#??????????????????????? | | ????????????????????????#s#??????????????????????? | | ????????????????????????# #??????????????????????? | | ????????????????????????# #??????????????????????? | | ???????????????????????? #??????????????????????? | | ????????????????????????# #??????????????????????? | | ????????????????????????# ??????????????????????? | | ???????????????????????? ??????????????????????? | | ???????????????????????? ??????????????????????? | | ???????????????????????? ??????????????????????? | | ???????????????????????? ??????????????????????? | | ???????????????????????? ??????????????????????? | | ???????????????????????? ??????????????????????? | | ???????????????????????? #??????????????????????? | | ???????????????????????? ???????????????????????? | | ???????????????????????? ???????????????????????? | | ?????????????????????????????????????????????????? | | ?????????????????????????????????????????????????? | | ?????????????????????????????????????????????????? | | ?????????????????????????????????????????????????? | | ?????????????????????????????????????????????????? | | ?????????????????????????????????????????????????? | | ?????????????????????????????????????????????????? | | ?????????????????????????????????????????????????? | | ?????????????????????????????????????????????????? | +----------------------------------------------------+ Best States ------------- Heat Dissipation 25 Energy Generation 12 Energy Capacity 265 Matter Stores 300 Matter Capacity 300 Sight Range 18 Terrain Scan Density 10 Armor Coverage 150 Evasion (%) 50 Recoil Reduction 2 Item Schematics ----------------- None Robot Schematics ------------------ None Fabricated ------------ Nothing Alien Tech Used ----------------- None Achievements -------------- None Challenges ------------ None Game ------ Seed AuthchipChipBotcube Manual? 0 Play Time 00:22:34 Cumulative 192.0 hours Start 2024.07.29 @ 02:58:29 End 2024.07.29 @ 03:22:26 Sessions 1 Manual Loads 0 Difficulty Rogue Special Mode None Game No. 169 Rogue 164 Adventurer 5 Explorer 0 Win Type - Total 3 Types 2/0/1/0/0/0/0/0/0 Lore% 61 Gallery% 75 Achievement% 58 Wizard Run 0 Options --------- Layout 2 ASCII 0 Keyboard 0 Movement Mouse Keybinds 0 Fullscreen 2 Font 24/Smallcaps Map View 50x44 Zoom Use 9% Tactical HUD 1 Map Filters NONE Filters NONE Steam 1 RUN: 5f43d10e-4b5e-4fe9-968d-da876a74dd54